bitfinex/quotes_ETHUSD_20250720
["timestamp","ask_amount","ask_price","bid_price","bid_amount"]
[1753001345505,0.752,3712.1,3710.5,0.02695054]
[1753001345669,4.575,3712.0,3710.6,2.69497726]
[1753001345872,4.575,3712.0,3710.4,3.9323611]
[1753001345873,30.4406,3711.9,3710.4,0.7818]
[1753001346073,30.4406,3711.8,3710.4,0.7818]
[1753001346306,37.7087997,3711.7,3710.4,0.001]
[1753001346512,0.752,3711.5,3710.4,0.001]
[1753001346724,2.69454999,3711.2,3710.4,0.001]
[1753001347036,4.575,3711.2,3710.5,2.69505457]
[1753001347190,30.0,3711.1,3710.6,0.26960546]
[1753001347394,0.752,3712.0,3710.6,0.26960546]
[1753001347613,2.6942464,3711.7,3711.0,0.001]
[1753001347928,30.0,3711.6,3711.0,0.001]
[1753001348091,30.0,3711.8,3711.0,0.001]
[1753001348292,30.0,3711.8,3711.1,2.69461884]
[1753001348489,30.0,3711.8,3711.2,3.23351408]
[1753001348689,2.69387393,3712.2,3711.4,2.69437448]
[1753001349008,0.752,3712.8,3711.4,0.4555]
[1753001349196,2.69361153,3712.5,3711.4,0.4555]
[1753001349400,7.27825851,3713.0,3712.2,2.69375733]
[1753001349632,32.6933125,3712.9,3712.1,2.69385734]
[1753001349835,30.0,3712.8,3712.1,2.69385734]
[1753001350205,30.0,3712.8,3712.2,2.69381628]
[1753001350404,5.0226,3713.2,3712.3,0.8153]
[1753001350608,5.0226,3713.2,3712.3,3.50903804]
[1753001350609,2.69316743,3713.1,3712.3,3.50903804]
[1753001350823,30.0,3713.0,3711.6,0.8153]
[1753001351103,0.752,3713.4,3711.1,0.8153]
[1753001351104,2.69390483,3712.1,3711.1,0.8153]
[1753001351290,30.0,3712.0,3711.2,2.69454623]
[1753001351639,4.593,3712.1,3711.1,0.8153]
[1753001351933,2.69361859,3712.5,3711.1,0.8153]
[1753001351934,30.0,3712.0,3711.1,0.8153]
[1753001352111,4.596,3712.1,3711.1,0.8153]
[1753001352438,32.69401351,3712.0,3711.2,2.69449194]
[1753001352741,32.69401351,3712.0,3711.1,0.8153]
[1753001352742,2.69419284,3711.7,3711.1,0.8153]
[1753001352901,2.69412746,3711.8,3711.1,0.8153]
[1753001353104,7.28990289,3712.1,3711.1,3.50990844]
[1753001353303,32.69402197,3712.0,3711.2,2.69454466]
[1753001353518,32.69406818,3711.9,3711.1,3.90673982]
[1753001353841,2.69417619,3711.8,3711.1,1.21213533]
[1753001354012,2.69423588,3711.7,3711.1,1.21213533]
[1753001354207,32.69428643,3711.6,3711.0,0.001]
[1753001354553,34.592,3711.5,3711.0,0.001]
[1753001354700,30.0,3711.4,3711.0,0.001]
[1753001355034,30.4406,3711.4,3711.0,0.001]
[1753001355237,2.69354502,3712.6,3711.0,0.001]
[1753001355238,2.69396551,3712.0,3711.0,0.001]
[1753001355545,2.69446221,3711.4,3711.0,0.1354]
[1753001355703,2.69434364,3711.5,3711.0,0.1354]
[1753001356036,2.69454623,3711.2,3711.0,0.001]
[1753001356237,0.1344,3711.4,3711.0,0.001]
[1753001356537,4.588,3711.6,3711.0,0.001]
[1753001356725,4.588,3711.6,3711.2,0.1344]
[1753001357232,2.69447363,3711.3,3711.2,1e-08]
[1753001357411,37.28047363,3711.3,3711.2,1e-08]
[1753001357611,37.72107363,3711.3,3711.2,1e-08]
[1753001359345,40.72107363,3711.3,3711.2,1e-08]
[1753001359821,42.05677363,3711.3,3711.2,1e-08]
[1753001360017,32.69447363,3711.3,3711.2,1e-08]
[1753001360216,30.0,3711.3,3711.2,1e-08]
[1753001360447,4.607,3711.4,3711.2,1e-08]
[1753001361144,30.0,3711.3,3711.2,1e-08]
[1753001361541,2.69423612,3711.7,3711.2,1e-08]
[1753001361542,2.69425884,3711.6,3711.2,1e-08]
[1753001361758,30.0,3711.5,3711.2,1e-08]
[1753001362259,32.69433531,3711.5,3711.2,1e-08]
[1753001362422,2.69447363,3711.3,3711.2,1e-08]
[1753001362767,2.69447363,3711.3,3710.1,2.69527866]
[1753001362768,1.38296616,3710.0,3707.0,0.0029851]
[1753001362965,2.6976719,3706.9,3706.8,0.001]
[1753001363124,42.56611526,3706.9,3706.8,0.001]
[1753001363327,43.8066879,3706.9,3706.8,0.001]
[1753001363522,43.8066879,3706.9,3705.6,4.0]
[1753001363523,2.69818142,3706.2,3705.6,4.0]
[1753001363722,7.63518142,3706.2,3705.5,0.7533]
[1753001363923,2.6986183,3705.6,3705.5,0.7533]
[1753001364124,2.69869113,3705.5,3704.9,0.7533]
[1753001364326,36.176016,3705.5,3704.9,0.7533]
[1753001364559,36.176016,3706.1,3704.9,0.7533]
[1753001364782,2.6988418,3705.3,3704.9,0.7533]
[1753001364939,11.109016,3705.2,3704.9,0.7533]
[1753001365128,6.176016,3705.1,3704.9,0.7533]
[1753001365325,36.176016,3705.1,3704.9,0.7533]
[1753001365529,36.176016,3705.1,3704.4,0.8229]
[1753001365753,38.87504657,3705.1,3703.8,0.8229]
[1753001366062,3.13929395,3705.5,3703.4,0.8239]
[1753001366063,0.7922,3704.9,3703.4,0.8239]
[1753001366263,3.0,3705.9,3703.4,1.2794]
[1753001366264,41.104016,3704.8,3703.4,1.2794]
[1753001366565,2.69985851,3703.9,3703.4,0.8239]
[1753001366767,36.176016,3703.8,3703.4,0.8239]
[1753001366968,2.7000027,3703.7,3703.4,0.8239]
[1753001367153,11.140016,3703.6,3703.4,0.8239]
[1753001367465,11.140016,3703.6,3702.0,0.8229]
[1753001367466,30.0,3703.4,3702.0,0.8229]
[1753001367674,4.963,3703.3,3702.0,0.8229]
[1753001367965,43.83738739,3703.2,3702.3,0.4562]
[1753001368155,6.176016,3703.1,3702.9,0.1344]
[1753001368476,30.1344,3702.9,3702.3,0.1344]
[1753001368626,6.176016,3702.8,3702.3,0.1344]
[1753001368969,6.176016,3702.8,3702.5,0.1344]
[1753001368970,4.961,3702.7,3702.5,0.1344]
[1753001369170,4.961,3702.7,3702.0,0.8229]
[1753001369171,11.137016,3702.7,3702.0,0.8229]
[1753001369373,6.176016,3702.7,3702.6,0.1354]
[1753001369666,6.176016,3702.9,3702.6,0.1354]
[1753001369825,6.176016,3702.9,3702.6,0.001]
[1753001370024,6.176016,3702.9,3702.8,0.1344]
[1753001370225,6.176016,3702.9,3702.8,0.13175925]
[1753001370429,6.176016,3703.4,3702.8,0.58795925]
[1753001370629,4.952,3703.3,3702.9,0.02700586]
[1753001370865,4.952,3703.3,3702.8,0.13175925]
[1753001370866,4.952,3703.3,3703.0,0.1344]
[1753001371033,6.176016,3703.2,3703.0,0.1344]
[1753001371569,36.176016,3703.2,3703.0,0.1344]
[1753001371777,36.176016,3703.2,3703.0,0.13214387]
[1753001371977,7.65144017,3703.1,3703.0,0.13214387]
[1753001372137,13.82745617,3703.1,3702.6,0.001]
[1753001372336,13.82745617,3703.1,3702.7,0.1344]
[1753001372337,6.176016,3703.0,3702.7,0.1344]
[1753001372859,4.939,3702.9,3702.7,0.1344]
[1753001373055,6.176016,3702.8,3702.7,0.1344]
[1753001373255,6.176016,3702.8,3702.7,2.70073189]
[1753001373464,6.176016,3702.8,3702.7,2.83513189]
[1753001373649,6.176016,3702.8,3702.7,3.84503038]
[1753001373855,4.938,3703.1,3702.7,3.29132355]
[1753001374066,6.176016,3703.0,3702.8,2.70065799]
[1753001374280,6.176016,3703.1,3703.0,2.83491309]
[1753001374460,32.88490291,3703.8,3703.3,0.1344]
[1753001374665,4.933,3703.7,3703.1,3.40804588]
[1753001374957,4.933,3703.7,3703.3,0.1344]
[1753001375184,30.0,3703.6,3703.1,0.70761538]
[1753001375389,30.0,3703.6,3703.1,0.1344]
[1753001375599,30.4581,3703.6,3703.1,0.1344]
[1753001375776,30.4581,3703.5,3703.1,0.1344]
[1753001375965,2.7003648,3703.3,3703.1,0.1344]
[1753001376394,0.4581,3703.3,3703.1,0.1344]
[1753001376572,4.924,3703.4,3703.1,0.1344]
[1753001376785,1.75866192,3703.9,3703.1,0.28349356]
[1753001376991,3.098,3704.6,3703.5,2.70010641]
[1753001377284,2.69958129,3704.3,3703.4,2.70015596]
[1753001377506,7.62657357,3704.3,3703.2,2.70036724]
[1753001377702,7.62657357,3704.3,3703.3,0.7612]
[1753001377920,3.15752126,3704.5,3703.3,0.7612]
[1753001377921,0.4581,3704.5,3703.3,0.7612]
[1753001378067,4.925,3704.3,3703.3,0.7612]
[1753001378272,4.925,3704.3,3703.7,2.69999218]
[1753001378473,0.4581,3704.5,3703.7,2.69999057]
[1753001378792,0.4581,3705.0,3703.8,0.4562]
[1753001378996,30.0,3704.9,3704.4,0.7612]
[1753001379171,30.0,3705.1,3704.7,2.69926583]
[1753001379370,30.0,3705.1,3704.4,3.46062288]
[1753001379371,30.0,3705.1,3704.8,2.69918713]
[1753001379601,29.99235645,3705.1,3704.4,0.7612]
[1753001379805,29.99235645,3705.1,3704.7,2.69925047]
[1753001379806,30.0,3705.1,3704.7,2.69925047]
[1753001380002,30.0,3705.1,3704.8,2.69918911]
[1753001380184,4.925,3705.2,3704.8,2.69918911]
[1753001380381,4.925,3705.2,3704.7,2.69925858]
[1753001380606,1.2705,3705.5,3704.5,0.02699419]
[1753001380783,2.69867062,3705.6,3704.6,3.04810065]
[1753001380983,30.0,3705.5,3704.4,0.7612]
[1753001381389,2.69884952,3705.3,3704.5,2.69941962]
[1753001381582,4.92,3705.4,3704.5,2.69941962]
[1753001381583,32.69891267,3705.2,3704.5,2.69941341]
[1753001381802,30.0,3705.1,3704.4,0.7612]
[1753001382112,3.4581,3705.5,3704.8,2.69918751]
[1753001382312,30.0,3705.4,3704.8,2.69918751]
[1753001382509,3.0,3705.0,3704.0,2.69974735]
[1753001382724,35.3741,3704.9,3703.6,0.8113]
[1753001382903,2.69942042,3704.5,3703.7,2.69993525]
[1753001383104,4.916,3704.5,3703.9,2.6997992]
[1753001383302,4.916,3704.5,3703.7,0.62113118]
[1753001383303,0.24722937,3704.4,3703.7,0.62113118]
[1753001383498,0.4581,3704.9,3703.7,2.70000008]
[1753001383499,0.24722937,3704.3,3703.7,2.70000008]
[1753001383796,0.24722937,3704.2,3704.1,2.69971113]
[1753001384009,0.24722937,3704.2,3704.1,3.96721113]
[1753001384196,0.24722937,3704.2,3704.1,4.51721113]
[1753001385611,2.69817295,3706.3,3704.4,0.7858]
[1753001385822,35.3661,3706.2,3704.5,0.34854382]
[1753001386026,33.70578076,3706.1,3702.6,2.70174191]
[1753001386322,0.8055,3705.4,3703.5,3.4859222]
[1753001386533,3.0,3704.9,3704.1,2.69964893]
[1753001386699,30.0,3704.8,3704.1,2.69964893]
[1753001386902,30.0,3704.8,3704.4,0.1344]
[1753001387222,0.4581,3704.8,3704.4,0.1344]
[1753001387426,30.0,3704.7,3704.4,0.1344]
[1753001387591,3.0,3704.9,3704.4,0.1344]
[1753001387997,3.4581,3704.9,3704.4,0.1344]
[1753001388198,0.4581,3704.8,3704.4,0.1344]
[1753001388427,3.1344,3705.0,3704.4,0.1344]
[1753001388631,3.1344,3705.0,3704.5,2.69940387]
[1753001388928,0.4581,3704.9,3703.4,2.70019288]
[1753001389228,0.1344,3704.8,3704.1,2.8341107]
[1753001389428,0.1344,3704.8,3704.5,2.69941606]
[1753001389608,3.0,3705.0,3703.6,0.39421929]
[1753001389609,3.0,3705.0,3703.8,0.02699929]
[1753001389803,30.0,3704.9,3704.4,0.1344]
[1753001390022,30.4581,3704.9,3704.4,0.1344]
[1753001390194,30.70689835,3704.8,3704.4,0.1344]
[1753001390395,0.24879835,3704.7,3704.4,0.1344]
[1753001390608,0.24879835,3704.6,3704.4,0.1344]
[1753001390808,3.1344,3705.0,3704.4,2.83389249]
[1753001390809,0.24879835,3704.5,3704.4,2.83389249]
[1753001391001,0.24879835,3704.5,3704.4,3.22133472]
[1753001391401,0.24879835,3704.5,3704.4,3.03183546]
[1753001391596,0.24879835,3704.5,3704.4,0.1344]
[1753001393404,0.24879835,3704.5,3704.4,2.83389249]
[1753001393608,0.24879835,3704.5,3704.4,3.58829249]
[1753001393914,0.24879835,3704.5,3704.4,8.91649249]
[1753001394499,0.24879835,3704.5,3704.4,4.04449249]
[1753001394702,0.24879835,3704.5,3704.4,10.13790464]
[1753001394933,0.24879835,3704.5,3704.4,5.26890464]
[1753001395238,0.24879835,3704.5,3704.4,4.81270464]
[1753001395440,0.24879835,3704.5,3704.4,10.13590464]
[1753001396959,0.24192633,3704.5,3704.4,10.13590464]
[1753001397116,0.002,3704.8,3704.7,3.24927389]
[1753001397320,0.002,3704.8,3704.7,6.24927389]
[1753001397545,0.00049841,3704.8,3704.7,6.83987389]
[1753001397753,0.25162747,3704.8,3704.7,6.83987389]
[1753001399254,0.25162747,3704.8,3704.7,7.63187389]
[1753001399460,0.25162747,3704.8,3704.7,9.61744353]
[1753001399633,0.002,3705.3,3705.2,7.03290964]
[1753001399834,0.002,3706.3,3706.2,2.69818142]
[1753001400234,0.002,3706.3,3706.2,0.1344]
[1753001401557,0.4388,3706.3,3706.2,0.1344]
[1753001401776,2.69834366,3706.0,3705.7,0.1344]
[1753001402075,30.0,3706.2,3705.7,0.1344]
[1753001402076,0.4368,3705.9,3705.7,0.1344]
[1753001402225,0.1364,3706.3,3705.7,0.1344]
[1753001402558,30.0,3706.2,3706.1,0.1344]
[1753001402763,30.0,3706.1,3705.7,0.1344]
[1753001403057,0.9421,3705.8,3705.2,0.1344]
[1753001403381,30.4368,3705.7,3704.6,0.7842]
[1753001403520,0.1344,3705.5,3704.8,0.1344]
[1753001403726,2.69876812,3705.4,3704.8,0.1344]
[1753001404127,2.69885651,3705.3,3704.8,0.1344]
[1753001404440,0.4368,3705.2,3704.8,0.1344]
[1753001404640,0.4368,3705.1,3704.8,0.1344]
[1753001404835,3.94303928,3705.8,3704.7,2.69927389]
[1753001405036,0.1344,3705.8,3704.8,0.7790194]
[1753001405241,3.9188,3706.2,3705.6,0.1344]
[1753001405564,2.69862362,3705.6,3704.9,7.51511466]
[1753001405723,30.0,3705.5,3705.3,0.1344]
[1753001405929,30.4368,3705.5,3704.8,4.814]
[1753001406259,2.69876991,3705.4,3704.7,4.814]
[1753001406470,2.69876791,3705.4,3704.9,0.1344]
[1753001406632,0.4368,3705.3,3704.9,0.1344]
[1753001407156,0.1344,3705.5,3704.9,0.1344]
[1753001407463,30.4368,3705.4,3704.9,0.1344]
[1753001407761,2.69892451,3705.2,3704.9,0.1344]
[1753001407925,30.0,3705.1,3704.9,0.1344]
[1753001408259,2.83351788,3705.0,3704.4,4.9374]
[1753001408459,0.7844,3705.3,3704.4,5.83666452]
[1753001408666,0.1344,3705.4,3704.8,0.1344]
[1753001408853,0.7844,3706.0,3704.8,2.69916507]
[1753001408854,3.13547785,3705.6,3704.8,2.69916507]
[1753001409060,0.5712,3705.6,3705.0,0.1344]
[1753001409230,3.5712,3705.6,3705.0,0.1344]
[1753001409564,2.69874524,3705.5,3704.8,2.69919279]
[1753001409737,2.69874524,3705.5,3704.7,4.803]
[1753001409738,3.13543022,3705.6,3704.6,0.752]
[1753001409925,3.13543022,3705.6,3704.0,0.4642]
[1753001409926,2.69869113,3705.5,3704.0,3.4642]
[1753001410259,2.69904022,3705.1,3704.3,2.69955989]
[1753001410644,3.13588945,3705.0,3704.3,2.69955989]
[1753001410829,0.7814,3705.6,3704.5,0.7863]
[1753001411159,0.7814,3705.6,3704.9,2.69907872]
[1753001411363,0.7814,3705.6,3705.0,2.69904307]
[1753001411788,0.7814,3705.6,3705.1,2.69893307]
[1753001412097,0.68867931,3705.5,3705.1,2.69896139]
[1753001412271,0.7814,3705.6,3705.1,2.69896139]
[1753001412272,0.25187931,3705.4,3705.1,2.69896139]
[1753001412466,0.25187931,3705.3,3705.1,2.69896139]
[1753001412667,0.4368,3705.4,3705.0,2.69905287]
[1753001412885,0.25199729,3705.3,3705.0,2.69905287]
[1753001413084,0.25199729,3705.2,3705.0,2.69905287]
[1753001413258,0.4368,3705.3,3705.0,2.69905287]
[1753001413658,0.25202021,3705.2,3704.6,2.69927503]
[1753001413896,0.4368,3705.3,3704.8,2.69920103]
[1753001414192,0.25202141,3705.2,3704.1,1.3363]
[1753001414494,30.25204234,3705.1,3704.3,2.69951318]
[1753001414672,2.9511385,3705.0,3704.3,2.69951318]
[1753001414875,2.94502231,3704.9,3704.2,2.69963278]
[1753001415060,2.69913309,3704.9,3704.2,2.69963278]
[1753001415260,2.69924275,3704.8,3704.0,7.47771877]
[1753001415500,0.4368,3705.0,3704.0,2.6997792]
[1753001415656,2.69913997,3704.9,3704.0,7.4747792]
[1753001416061,0.4368,3705.0,3703.9,4.773]
[1753001416269,0.7857,3706.3,3704.9,0.8146]
[1753001416494,0.4368,3706.0,3705.6,2.69858175]
[1753001416681,0.4368,3706.0,3705.0,2.72602881]
[1753001417004,0.7857,3706.3,3706.1,2.69824077]
[1753001417171,0.002,3706.3,3706.2,2.69818142]
[1753001417375,0.4368,3707.4,3706.2,1.08530751]
[1753001417574,0.4368,3707.4,3706.9,2.69764167]
[1753001417778,0.002,3707.1,3707.0,2.69759203]
[1753001419596,0.002,3707.1,3707.0,2.83199203]
[1753001419987,0.002,3707.1,3707.0,8.09316802]
[1753001420190,0.002,3707.1,3707.0,9.77674188]
[1753001420499,0.002,3707.1,3707.0,3.99254188]
[1753001420669,0.002,3707.1,3707.0,0.1344]
[1753001421066,2.69759913,3707.0,3706.1,2.69818381]
[1753001421374,2.69759913,3707.0,3706.3,0.1344]
[1753001421375,30.1344,3706.9,3706.3,0.1344]
[1753001421697,30.0,3706.8,3706.3,0.1344]
[1753001422111,0.4388,3707.1,3706.6,0.1344]
[1753001422310,0.4388,3707.1,3705.8,5.5532]
[1753001422311,30.4368,3707.0,3705.8,5.5532]
[1753001422513,0.002,3707.1,3705.8,6.57272]
[1753001422818,2.69768017,3706.9,3706.5,0.1344]
[1753001423208,0.4368,3706.8,3706.5,0.1344]
[1753001423381,2.83393104,3707.1,3706.5,0.1344]
[1753001423718,30.0,3706.5,3704.7,0.4642]
[1753001423886,4.268,3706.4,3705.4,2.6987558]
[1753001424209,2.69818984,3706.2,3705.1,2.69896113]
[1753001424409,2.6983877,3706.0,3705.1,3.23877735]
[1753001424716,0.4368,3706.0,3705.1,0.53981622]
[1753001424913,3.1351302,3706.0,3704.7,0.4642]
[1753001425092,2.6985513,3705.7,3704.8,2.69920103]
[1753001425290,0.4368,3706.0,3704.9,2.72606788]
[1753001425502,3.13513734,3706.0,3704.9,4.758]
[1753001425707,2.69851463,3705.8,3704.9,7.45710731]
[1753001426013,2.69855758,3705.7,3704.9,8.24923804]
[1753001426219,2.69855758,3705.7,3704.9,3.49123804]
[1753001426512,30.0,3705.6,3704.7,7.45627017]
[1753001426712,30.0,3705.6,3704.9,2.69908267]
[1753001426916,30.0,3705.6,3704.8,2.69919802]
[1753001427124,32.69863216,3705.6,3704.8,2.69919802]
[1753001427298,2.69863216,3705.6,3704.8,2.69919802]
[1753001427805,2.69813872,3706.3,3705.0,0.8132]
[1753001428005,33.0,3706.2,3705.0,0.8132]
[1753001428210,30.0,3706.1,3705.6,2.69860612]
[1753001428520,0.8312,3706.4,3705.6,0.02698618]
[1753001428820,0.8156,3706.8,3706.1,2.69822492]
[1753001429117,0.002,3707.1,3706.5,2.69789733]
[1753001429324,0.002,3707.1,3705.9,5.5592]
[1753001429325,30.0,3707.0,3706.4,2.69799948]
[1753001429617,0.002,3707.1,3706.3,2.69810862]
[1753001429821,0.002,3707.1,3706.3,3.43961434]
[1753001430000,0.002,3707.1,3706.4,2.69798234]
[1753001430720,0.002,3707.1,3706.2,3.04932147]
[1753001430905,0.002,3707.1,3706.5,2.69795455]
[1753001431820,0.002,3707.1,3706.5,2.69791087]
[1753001432020,0.002,3707.1,3706.6,2.69785868]
[1753001432323,0.002,3707.1,3706.4,2.69803267]
[1753001432324,2.69953361,3707.1,3706.4,2.69803267]
[1753001432822,0.002,3707.1,3706.2,0.35114249]
[1753001433124,2.69761112,3707.0,3706.3,2.69809716]
[1753001433326,3.13783115,3707.1,3706.3,2.69809716]
[1753001433533,3.13783081,3707.1,3706.3,2.69809141]
[1753001433712,2.69760313,3707.0,3706.2,2.69817054]
[1753001433925,0.4403,3707.1,3706.5,0.1344]
[1753001433926,0.1344,3707.1,3706.5,0.1344]
[1753001434237,2.69797141,3706.5,3706.0,0.1344]
[1753001434437,2.69810238,3706.4,3706.0,0.1344]
[1753001434635,2.69811613,3706.3,3706.0,0.1344]
[1753001434795,0.7559,3706.4,3705.5,3.50477642]
[1753001434995,2.69820526,3706.2,3705.7,0.1344]
[1753001435205,0.4403,3706.1,3705.7,0.1344]
[1753001435425,3.45396757,3706.4,3705.4,2.69874162]
[1753001435630,0.4403,3706.0,3705.5,0.1344]
[1753001436293,0.4403,3706.0,3705.6,2.69856182]
[1753001436498,0.4403,3706.0,3705.5,0.1344]
[1753001436912,0.1344,3706.1,3705.5,0.1344]
[1753001437115,2.69854046,3705.8,3705.0,2.69900321]
[1753001437327,30.0,3705.7,3705.2,0.1344]
[1753001437708,0.4403,3705.6,3705.2,2.83326204]
[1753001438228,0.1344,3705.8,3705.3,2.69877546]
[1753001438431,4.699,3706.0,3705.4,2.69874941]
[1753001438620,7.53173158,3706.0,3705.4,0.1344]
[1753001439054,4.8334,3706.0,3705.5,2.69861959]
[1753001439512,4.8334,3706.0,3705.4,0.1344]
[1753001439708,30.0,3705.9,3705.4,0.1344]
[1753001440211,30.4403,3705.9,3705.4,0.1344]
[1753001440411,4.8334,3706.0,3705.4,2.83316063]
[1753001440911,4.8334,3706.0,3705.5,2.69867992]
[1753001441107,4.8334,3706.0,3705.4,0.1344]
[1753001441349,0.8271,3707.1,3705.7,0.55]
[1753001441510,0.8271,3707.1,3706.6,2.69783334]
[1753001441511,30.0,3707.0,3706.6,2.69783334]
[1753001441710,0.8271,3707.1,3705.9,2.69839984]
[1753001441711,5.5221,3707.1,3705.9,2.69839984]
[1753001441919,5.5221,3707.1,3705.7,5.245]
[1753001441920,5.5221,3707.1,3706.8,2.69773911]
[1753001442126,0.002,3707.1,3707.0,2.69759913]
[1753001442326,4.694,3707.1,3707.0,2.69759913]
[1753001442521,0.002,3707.1,3706.8,2.69773927]
[1753001442728,4.694,3707.1,3706.6,3.49147434]
[1753001442928,4.694,3707.1,3706.8,2.69769523]
[1753001443332,4.694,3707.1,3706.6,0.7936]
[1753001443527,0.4403,3707.0,3706.0,0.7936]
[1753001443863,0.4403,3707.0,3706.4,2.6980159]
[1753001444359,4.691,3707.1,3706.1,0.4621]
[1753001444563,4.682,3707.0,3706.7,2.69776047]
[1753001444770,5.1223,3707.0,3706.3,2.69804922]
[1753001445073,2.69800635,3706.5,3705.6,0.7628]
[1753001445230,35.1223,3706.4,3705.8,2.6984614]
[1753001445429,5.1223,3706.4,3705.7,2.6985238]
[1753001445772,30.0,3706.3,3705.7,2.6985238]
[1753001446272,30.0,3706.3,3705.8,2.69840437]
[1753001446425,30.4403,3706.3,3705.7,2.69849209]
[1753001446630,0.4403,3706.3,3705.7,2.69849209]
[1753001446863,2.69824245,3706.2,3705.4,0.28602216]
[1753001447057,32.69826716,3706.1,3705.4,2.9847708]
[1753001447272,33.13864566,3706.0,3705.3,2.69881556]
[1753001447436,34.673,3705.9,3705.4,2.69870744]
[1753001447635,4.673,3705.9,3705.5,2.69868196]
[1753001447834,4.673,3705.9,3705.2,2.72587899]
[1753001447835,4.673,3705.9,3705.4,2.69875902]
[1753001448035,4.673,3705.9,3705.2,2.72587899]
[1753001448036,4.673,3705.9,3705.5,2.69868138]
[1753001448234,4.673,3705.9,3704.9,0.4621]
[1753001448235,5.1133,3705.9,3705.4,2.69874958]
[1753001448542,0.4403,3705.8,3705.2,2.69885023]
[1753001448738,0.4403,3705.8,3705.3,2.69881528]
[1753001449070,0.4403,3705.8,3705.4,2.69876216]
[1753001449784,0.4403,3705.8,3704.9,0.02699128]
[1753001449975,3.13879419,3705.8,3705.1,2.6989235]
[1753001450276,0.4403,3705.8,3705.2,2.69888942]
[1753001450855,3.13378458,3705.8,3705.1,2.69896471]
[1753001451150,0.43530438,3705.8,3705.2,2.69890543]
[1753001451482,3.26820728,3705.8,3705.2,0.1344]
[1753001451667,0.56970438,3705.8,3705.2,2.83329163]
[1753001451876,0.56970438,3705.8,3705.2,0.1344]
[1753001452403,4.651,3705.7,3705.4,2.69875049]
[1753001452954,4.651,3705.7,3705.4,2.69869594]
[1753001453182,4.651,3705.7,3705.4,2.83309594]
[1753001453353,4.648,3705.6,3705.4,0.1344]
[1753001453762,5.0883,3705.6,3705.4,0.1344]
[1753001453973,0.4403,3705.5,3704.4,0.4621]
[1753001454192,0.4403,3705.5,3705.2,0.1344]
[1753001454486,4.648,3705.6,3705.3,2.69880545]
[1753001455000,4.648,3705.6,3705.2,2.83329437]
[1753001455147,4.648,3705.6,3705.2,0.1344]
[1753001455690,5.0883,3705.6,3705.2,0.1344]
[1753001456451,4.648,3705.6,3705.2,2.83330349]
[1753001456657,4.648,3705.6,3705.2,0.1344]
[1753001457348,5.0883,3705.6,3705.2,0.1344]
[1753001458255,0.4483,3705.5,3705.2,0.1344]
[1753001458457,0.4483,3705.4,3705.1,0.001]
[1753001458657,3.14706601,3705.4,3705.1,0.001]
[1753001458874,0.4483,3705.3,3705.1,0.001]
[1753001459098,7.33990964,3705.2,3705.1,0.001]
[1753001459268,41.55420964,3705.2,3705.1,0.001]
[1753001459796,3.0,3705.6,3705.1,0.001]
[1753001460118,5.69878616,3705.4,3705.1,0.001]
[1753001460272,3.0,3705.4,3705.1,0.001]
[1753001460477,2.69890964,3705.2,3705.1,0.001]
[1753001460774,36.51490964,3705.2,3705.1,0.001]
[1753001460973,41.60420964,3705.2,3705.1,0.001]
[1753001461392,38.9053,3705.2,3705.1,0.001]
[1753001461608,41.60420964,3705.2,3705.1,0.001]
[1753001463627,38.9053,3705.2,3705.1,0.001]
[1753001463825,41.60420964,3705.2,3705.1,0.001]
[1753001464623,7.641,3705.2,3705.1,0.001]
[1753001465216,0.816,3705.6,3705.1,0.001]
[1753001465534,3.0,3705.4,3705.1,0.001]
[1753001466027,0.816,3705.6,3705.1,0.001]
[1753001466199,0.4483,3706.4,3705.2,0.4625]
[1753001466518,3.0,3706.2,3705.6,2.69860666]
[1753001466721,3.0,3706.0,3705.4,2.69869328]
[1753001466923,4.641,3705.9,3705.5,2.69866629]
[1753001467229,4.641,3705.9,3705.6,2.69855372]
[1753001467521,4.641,3705.9,3705.4,2.69874656]
[1753001467729,0.4483,3706.4,3706.0,2.69827787]
[1753001467913,4.64,3706.3,3706.2,2.69818142]
[1753001468141,0.8048,3707.1,3705.9,0.4625]
[1753001468427,30.0,3707.0,3705.9,0.4625]
[1753001468734,34.64,3707.0,3706.6,2.69783661]
[1753001468903,4.64,3707.0,3706.5,2.69794634]
[1753001469103,4.64,3707.0,3706.6,2.69783491]
[1753001469421,4.63550494,3707.0,3706.6,2.69783491]
[1753001469591,4.63550494,3707.0,3706.0,0.4625]
[1753001469792,4.63550494,3707.0,3706.6,0.1344]
[1753001470019,0.002,3707.1,3706.6,0.8929]
[1753001470554,0.002,3707.1,3706.7,2.69781746]
[1753001470702,0.002,3707.1,3707.0,3.45609913]
[1753001470885,1e-08,3707.1,3707.0,3.45609913]
[1753001471091,1e-08,3707.1,3707.0,8.42849125]
[1753001471292,0.63332052,3708.2,3707.9,2.69694436]
[1753001471691,0.63332052,3708.2,3707.9,2.66944436]
[1753001471909,0.63332052,3708.2,3707.9,3.1589138]
[1753001472244,0.63332052,3708.2,3707.9,7.77094436]
[1753001472442,0.63332052,3708.2,3707.9,8.89359623]
[1753001473160,0.63332052,3708.2,3707.9,9.44359623]
[1753001473600,0.63332052,3708.2,3707.9,4.80459623]
[1753001473797,0.63332052,3708.2,3707.9,9.44259623]
[1753001474438,0.63332052,3708.2,3707.9,3.79209623]
[1753001474733,0.63332052,3708.2,3707.9,4.25459623]
[1753001474904,0.63332052,3708.2,3707.9,8.89259623]
[1753001475605,0.63332052,3708.2,3707.9,4.25459623]
[1753001475835,0.63332052,3708.2,3707.9,8.89259623]
[1753001476138,0.63332052,3708.2,3707.9,4.25459623]
[1753001476660,0.63332052,3708.2,3706.2,1.2171]
[1753001476661,3.0,3707.8,3706.2,1.2171]
[1753001476971,30.0,3707.8,3706.6,2.69789024]